bitfinex/quotes_SOLUSD_20220211
["timestamp","ask_amount","ask_price","bid_price","bid_amount"]
[1644541474813,40.7952019,106.52,106.32,4.695]
[1644541475011,18.93627055,106.51,106.29,24.2804]
[1644541475214,3.94784647,106.47,106.29,24.2804]
[1644541475414,48.23357336,106.46,106.29,24.2804]
[1644541476213,48.23357336,106.46,106.29,30.2804]
[1644541476412,48.23357336,106.46,106.29,32.05131859]
[1644541476614,48.23357336,106.46,106.3,4.7]
[1644541477414,52.18141983,106.46,106.3,4.7]
[1644541477615,52.18141983,106.46,106.29,38.389]
[1644541477814,0.4737,106.45,106.29,38.389]
[1644541478014,5.76879784,106.45,106.29,38.389]
[1644541478215,45.41919776,106.44,106.29,30.2804]
[1644541478414,49.36704423,106.44,106.29,30.2804]
[1644541478815,0.4737,106.45,106.29,32.04712467]
[1644541479015,3.94784647,106.46,106.29,60.76181402]
[1644541479218,3.94784647,106.47,106.29,60.76181402]
[1644541479718,37.06494119,106.46,106.3,14.1081]
[1644541480119,37.06494119,106.46,106.3,20.1081]
[1644541480317,46.81011405,106.43,106.3,20.1081]
[1644541480517,46.81011405,106.43,106.31,4.699]
[1644541480717,3.94784647,106.45,106.31,10.699]
[1644541481120,3.94784647,106.45,106.32,14.1063]
[1644541481320,3.94784647,106.45,106.33,4.699]
[1644541481618,41.85849033,106.49,106.32,20.3563]
[1644541481822,41.85849033,106.49,106.32,25.0553]
[1644541482325,11.6445,106.48,106.29,24.2804]
[1644541482527,40.31215492,106.47,106.29,24.2804]
[1644541482722,35.17524627,106.45,106.29,24.2804]
[1644541482924,35.92750643,106.43,106.29,24.2804]
[1644541483527,47.05750643,106.43,106.29,24.2804]
[1644541484129,0.5142,106.42,106.25,4.699]
[1644541484330,55.55169791,106.41,106.25,4.699]
[1644541484533,0.31183778,106.4,106.14,36.26085962]
[1644541484734,0.82613778,106.4,106.13,201.49815487]
[1644541484929,14.1272,106.37,106.17,14.1266]
[1644541485130,41.75885187,106.36,106.17,14.1266]
[1644541485329,52.88885187,106.36,106.18,1.76672467]
[1644541485728,52.88885187,106.36,106.19,4.704]
[1644541486132,0.47093825,106.68,106.21,2.0]
[1644541486331,31.81375353,106.65,106.38,1.76672467]
[1644541486529,10.59376841,106.62,106.39,11.13]
[1644541486734,10.59376841,106.62,106.39,36.28187824]
[1644541487029,44.39325292,106.61,106.4,52.72419724]
[1644541487231,5.3077003,106.6,106.44,14.0845]
[1644541487432,48.57572141,106.59,106.4,6.25]
[1644541487633,2.64618556,106.57,106.4,6.25]
[1644541487831,47.20313345,106.56,106.4,6.25]
[1644541488033,47.20313345,106.56,106.4,0.25]
[1644541488232,47.20313345,106.56,106.4,6.25]
[1644541488436,47.20313345,106.56,106.4,6.0]
[1644541488634,2.64618556,106.58,106.41,11.13]
[1644541488936,0.77301092,106.68,106.41,11.13]
[1644541488937,2.64506998,106.67,106.42,19.36146186]
[1644541489139,3.11712381,106.68,106.43,11.13]
[1644541489335,3.11712381,106.68,106.43,42.18721158]
[1644541489536,45.96795823,106.67,106.44,39.47667344]
[1644541489736,0.47093825,106.68,106.46,14.0869]
[1644541489937,0.47093825,106.68,106.51,7.0]
[1644541490136,0.47093825,106.68,106.52,11.13]
[1644541490335,0.47093825,106.68,106.52,17.38]
[1644541490541,0.47093825,106.68,106.53,4.69]
[1644541490737,0.47093825,106.68,106.53,24.7577]
[1644541490935,0.47093825,106.68,106.53,20.0677]
[1644541491837,0.47093825,106.68,106.5,14.0833]
[1644541492034,0.47093825,106.68,106.49,1.77003927]
[1644541492334,11.13,106.67,106.46,1.77003927]
[1644541492534,35.32273152,106.66,106.45,19.36146186]
[1644541492736,35.32273152,106.66,106.46,4.692]
[1644541493158,35.32273152,106.66,106.46,24.05346186]
[1644541493758,35.32273152,106.66,106.47,14.0873]
[1644541493960,35.32273152,106.66,106.47,25.2173]
[1644541494357,35.32273152,106.66,106.48,1.76584799]
[1644541494562,35.32273152,106.66,106.49,11.13]
[1644541494757,35.32273152,106.66,106.49,50.21624011]
[1644541494958,35.32273152,106.66,106.5,40.8520881]
[1644541495157,35.32273152,106.66,106.51,11.13]
[1644541495360,35.32273152,106.66,106.52,4.691]
[1644541495557,35.32273152,106.66,106.52,15.821]
[1644541495757,35.32273152,106.66,106.53,14.078]
[1644541495956,35.32273152,106.66,106.54,4.69]
[1644541496356,35.32273152,106.66,106.54,10.94]
[1644541497056,35.32273152,106.66,106.54,6.0]
[1644541497257,35.32273152,106.66,106.54,0.25]
[1644541497658,35.32273152,106.66,106.5,31.2136]
[1644541497858,35.32273152,106.66,106.5,6.0]
[1644541498257,35.32273152,106.66,106.46,21.821]
[1644541498459,35.32273152,106.66,106.46,17.13]
[1644541498658,37.96891708,106.66,106.46,17.13]
[1644541498858,35.32273152,106.66,106.46,17.13]
[1644541499058,35.32273152,106.66,106.47,4.692]
[1644541499262,35.32273152,106.66,106.46,19.4074338]
[1644541499458,14.0955,106.61,106.43,14.0927]
[1644541499658,44.40038523,106.6,106.43,14.0927]
[1644541500561,44.40038523,106.6,106.4,12.8913205]
[1644541500562,14.0977,106.59,106.4,15.8578205]
[1644541500763,45.77414373,106.58,106.44,29.9057]
[1644541500963,45.77414373,106.58,106.44,23.9057]
[1644541501163,45.77414373,106.58,106.36,83.87168645]
[1644541501363,45.77414373,106.58,106.36,10.55448645]
[1644541501364,67.57451778,106.58,106.36,10.55448645]
[1644541501565,1.30451253,106.57,106.36,10.55448645]
[1644541501767,35.89583821,106.56,106.36,10.55448645]
[1644541501965,0.30557215,106.55,106.34,1.7613205]
[1644541502162,52.30716213,106.54,106.33,4.697]
[1644541502365,53.61167466,106.54,106.29,49.25101788]
[1644541502563,44.27773233,106.52,106.3,11.13]
[1644541502763,44.27773233,106.52,106.3,27.92126415]
[1644541502965,44.27773233,106.52,106.31,1.7613205]
[1644541503166,44.27773233,106.52,106.32,25.238]
[1644541503464,44.27773233,106.52,106.32,74.99396153]
[1644541503665,44.27773233,106.52,106.33,45.51728203]
[1644541503863,44.27773233,106.52,106.34,11.13]
[1644541504064,44.27773233,106.52,106.34,62.13250425]
[1644541504264,44.27773233,106.52,106.35,46.30450425]
[1644541504463,44.27773233,106.52,106.38,14.0922]
[1644541504863,44.27773233,106.52,106.36,6.4583205]
[1644541504864,44.27773233,106.52,106.36,1.7613205]
[1644541505065,44.27773233,106.52,106.31,4.697]
[1644541505262,0.30400177,106.51,106.29,6.4603205]
[1644541505464,0.30400177,106.51,106.29,4.699]
[1644541505663,22.21700177,106.51,106.29,4.699]
[1644541505867,46.3966178,106.5,106.29,52.23421788]
[1644541506066,46.3966178,106.5,106.33,547.94573761]
[1644541506265,1.30451253,106.56,106.34,4.698]
[1644541506465,1.30451253,106.57,106.34,61.81472647]
[1644541506668,1.30451253,106.6,106.35,28.619933]
[1644541506866,1.30451253,106.62,106.36,15.825]
[1644541507063,1.30451253,106.61,106.36,61.81172647]
[1644541507263,39.06084851,106.6,106.37,26.40686106]
[1644541507465,40.36536104,106.6,106.38,15.825]
[1644541507666,40.36536104,106.6,106.38,46.2062535]
[1644541507867,40.36536104,106.6,106.38,52.2062535]
[1644541508065,44.46047618,106.57,106.38,4.695]
[1644541508264,39.92484286,106.55,106.38,4.695]
[1644541508467,14.1057,106.52,106.38,4.695]
[1644541508664,42.50517332,106.51,106.38,4.695]
[1644541509468,42.50517332,106.51,106.38,10.945]
[1644541509666,42.50517332,106.51,106.38,4.945]
[1644541509866,42.50517332,106.51,106.38,10.945]
[1644541511066,42.50517332,106.51,106.38,6.25]
[1644541511266,42.50517332,106.51,106.38,0.25]
[1644541511466,42.50517332,106.51,106.38,6.25]
[1644541511668,42.50517332,106.51,106.38,6.0]
[1644541511874,42.50517332,106.51,106.38,6.25]
[1644541512072,42.50517332,106.51,106.38,0.25]
[1644541512270,42.50517332,106.51,106.38,6.25]
[1644541512569,42.50517332,106.51,106.38,0.25]
[1644541512770,42.50517332,106.51,106.36,20.3529]
[1644541513974,42.50517332,106.51,106.36,14.1029]
[1644541514274,0.31944467,106.48,106.31,4.697]
[1644541514473,0.31944467,106.48,106.31,6.0]
[1644541514674,0.31944467,106.48,106.3,17.81854491]
[1644541514871,39.29652868,106.49,106.32,43.35873931]
[1644541515072,37.99201615,106.49,106.37,14.1015]
[1644541515273,37.49201615,106.49,106.37,20.1015]
[1644541515672,37.49201615,106.49,106.37,14.3515]
[1644541515873,37.49201615,106.49,106.37,20.3515]
[1644541516174,37.49201615,106.49,106.38,4.697]
[1644541516374,37.49201615,106.49,106.38,6.25]
[1644541516874,37.49201615,106.49,106.38,6.0]
[1644541517075,37.49201615,106.49,106.38,0.25]
[1644541517474,52.90392868,106.49,106.37,6.0]
[1644541517682,52.90392868,106.49,106.31,47.023]
[1644541517683,52.90392868,106.49,106.3,4.697]
[1644541517878,15.411041,106.54,106.3,4.697]
[1644541517879,45.59730563,106.46,106.3,4.697]
[1644541518075,45.59730563,106.46,106.28,29.23344706]
[1644541518076,55.43530563,106.46,106.28,29.23344706]
[1644541518278,56.73981816,106.46,106.28,29.23344706]
[1644541518576,70.85201816,106.46,106.32,14.1086]
[1644541518776,70.85201816,106.46,106.29,26.32314706]
[1644541518975,69.54750563,106.46,106.29,8.00714706]
[1644541519175,70.85201816,106.46,106.29,8.00714706]
[1644541520278,70.85201816,106.46,106.29,14.1126]
[1644541520579,14.1159,106.42,106.29,14.1126]
[1644541520778,35.0715529,106.41,106.29,14.1126]
[1644541521176,35.0715529,106.41,106.29,15.86974706]
[1644541521777,35.0715529,106.41,106.29,22.11974706]
[1644541521977,35.0715529,106.41,106.29,20.3626]
[1644541522176,35.0715529,106.41,106.29,6.25]
[1644541522380,35.0715529,106.41,106.29,0.25]
[1644541522582,35.0715529,106.41,106.29,6.25]
[1644541522779,35.0715529,106.41,106.27,24.6221]
[1644541523279,36.37606543,106.41,106.27,24.6221]
[1644541523479,36.37606543,106.41,106.27,38.7388]
[1644541524278,50.49356543,106.41,106.27,24.6221]
[1644541524680,50.49356543,106.41,106.27,30.6221]
[1644541524881,50.49356543,106.41,106.27,24.6221]
[1644541525279,40.00049419,106.39,106.27,24.6221]
[1644541525582,1.30451253,106.4,106.27,24.6221]
[1644541525779,1.30451253,106.4,106.27,32.37924706]
[1644541525979,1.30451253,106.41,106.27,48.43556975]
[1644541526178,1.30451253,106.42,106.27,69.1825134]
[1644541526378,2.64618556,106.45,106.28,4.7]
[1644541526379,1.30451253,106.45,106.28,4.7]
[1644541526581,46.75215359,106.44,106.32,14.1089]
[1644541526782,46.75215359,106.44,106.27,72.35798637]
[1644541526783,48.05666612,106.44,106.27,116.2256134]
[1644541527080,42.32336679,106.41,106.29,6.25]
[1644541527681,42.32336679,106.41,106.3,14.113]
[1644541527983,42.32336679,106.41,106.3,14.363]
[1644541528181,42.32336679,106.41,106.3,20.363]
[1644541528385,42.32336679,106.41,106.3,6.0]
[1644541528582,53.68892061,106.39,106.28,4.7]
[1644541529082,42.07635528,106.37,106.28,4.7]
[1644541529284,43.38086781,106.37,106.28,4.7]
[1644541529482,43.38086781,106.37,106.27,24.6221]
[1644541530682,69.11236781,106.37,106.23,14.52881222]
[1644541530882,1.30451253,106.35,106.19,4.703]
[1644541531083,67.80785528,106.37,106.18,47.0834]
[1644541531084,40.02413725,106.34,106.18,47.0834]
[1644541531684,40.02413725,106.34,106.18,48.84034782]
[1644541531884,38.71962472,106.34,106.18,48.84034782]
[1644541532083,38.71962472,106.34,106.18,54.84034782]
[1644541532685,38.71962472,106.34,106.2,14.1265]
[1644541532686,52.84502472,106.34,106.2,14.1265]
[1644541533084,52.84502472,106.34,106.2,20.1265]
[1644541533283,52.84502472,106.34,106.2,20.3765]
[1644541534185,54.14953725,106.34,106.2,20.3765]
[1644541534588,52.84502472,106.34,106.2,20.3765]
[1644541534788,54.14953725,106.34,106.2,20.1265]
[1644541534985,52.84502472,106.34,106.2,20.1265]
[1644541535388,54.14953725,106.34,106.2,20.1265]
[1644541535987,52.84502472,106.34,106.2,20.1265]
[1644541536191,52.84502472,106.34,106.2,20.3765]
[1644541536387,52.84502472,106.34,106.2,6.0]
[1644541536589,54.14953725,106.34,106.2,6.0]
[1644541536888,94.25,106.33,106.18,20.1298]
[1644541537088,14.1306,106.3,106.18,20.1298]
[1644541537290,40.2413225,106.29,106.18,20.1298]
[1644541538192,40.2413225,106.29,106.18,14.1298]
[1644541538489,40.2413225,106.29,106.16,16.29824444]
[1644541538490,54.3728225,106.29,106.16,4.704]
[1644541538789,41.83014264,106.27,106.16,4.704]
[1644541539394,40.52563011,106.27,106.16,4.704]
[1644541540491,40.52563011,106.27,106.1,22.9782]
[1644541540705,35.05364201,106.24,106.1,37.1188]
[1644541540895,40.97101265,106.22,106.04,25.89687414]
[1644541541094,40.97101265,106.22,106.03,75.017]
[1644541541495,40.97101265,106.22,106.03,76.77394782]
[1644541541693,14.148,106.18,106.05,14.147]
[1644541541917,40.68134479,106.17,106.05,18.857]
[1644541542095,40.68134479,106.17,106.03,75.017]
[1644541542296,40.68134479,106.17,106.02,14.5607748]
[1644541542501,40.68134479,106.17,105.99,4.712]
[1644541542996,40.68134479,106.17,106.01,14.1516]
[1644541543393,40.68134479,106.17,106.0,1.75694782]
[1644541543595,40.68134479,106.17,105.98,4.713]
[1644541544798,54.82874479,106.17,105.99,14.1545]
[1644541546199,14.1563,106.11,105.99,14.1545]
[1644541546399,39.00533373,106.1,105.99,14.1545]
[1644541546600,39.00533373,106.1,105.97,43.49792315]
[1644541546802,39.00533373,106.1,105.97,49.49792315]
[1644541547000,39.00533373,106.1,105.97,43.49792315]
[1644541547200,39.00533373,106.1,105.97,38.78492315]
[1644541547500,39.00533373,106.1,105.97,24.62782315]
[1644541547501,0.32090297,106.09,105.97,24.62782315]
[1644541548107,0.32090297,106.09,105.91,47.2017]
[1644541548303,39.00533373,106.1,105.91,47.2017]
[1644541548502,39.00533373,106.1,105.92,4.716]
[1644541548703,39.00533373,106.1,105.92,25.02147297]
[1644541548903,39.00533373,106.1,105.92,19.02147297]
[1644541549106,47.17602666,106.08,105.92,4.716]
[1644541549726,47.17602666,106.08,105.92,10.716]
[1644541550328,47.17602666,106.08,105.92,39.18407297]
[1644541550329,61.34122666,106.08,105.92,39.18407297]
[1644541550629,61.34122666,106.08,105.92,39.43407297]
[1644541550929,47.17602666,106.08,105.92,39.18407297]
[1644541551128,47.17602666,106.08,105.92,24.8786]
[1644541551727,47.17602666,106.08,105.92,20.1626]
[1644541552826,61.34032666,106.08,105.92,20.1626]
[1644541553727,61.34032666,106.08,105.92,36.47487036]
[1644541554130,47.17602666,106.08,105.92,36.47487036]
[1644541554730,47.17602666,106.08,105.92,6.0]
[1644541555135,47.17602666,106.08,105.9,14.1663]
[1644541555329,47.17602666,106.08,105.9,20.1663]
[1644541555829,61.33962666,106.08,105.9,20.1663]
[1644541556032,69.19362666,106.08,105.9,20.1663]
[1644541556629,80.32362666,106.08,105.9,6.0]
[1644541556831,80.32362666,106.08,105.89,80.726]
[1644541557136,42.910436,106.06,105.87,1.75679739]
[1644541557331,38.46799294,106.0,105.86,14.30547297]
[1644541558233,38.46799294,106.0,105.86,16.06227036]
[1644541558435,38.46799294,106.0,105.86,22.06227036]
[1644541558631,38.46799294,106.0,105.87,4.72]
[1644541558831,38.46799294,106.0,105.87,10.97]
[1644541559032,38.46799294,106.0,105.88,1.75679739]
[1644541559231,38.46799294,106.0,105.88,7.75679739]
[1644541559432,38.46799294,106.0,105.88,20.1686]
[1644541559634,38.46799294,106.0,105.88,6.0]
[1644541560034,38.46799294,106.0,105.87,10.72]
[1644541560233,38.46799294,106.0,105.87,6.0]
[1644541560834,38.46799294,106.0,105.86,14.1717]
[1644541561638,52.64129294,106.0,105.86,14.1717]
[1644541561837,38.46799294,106.0,105.86,44.34029305]
[1644541562036,38.46799294,106.0,105.87,15.85]
[1644541562236,38.46799294,106.0,105.9,14.1641]
[1644541562438,24.4484,106.1,105.91,4.719]
[1644541562636,24.4484,106.1,105.91,29.95532269]
[1644541562836,38.6079,106.1,105.91,52.01759305]
[1644541563037,38.6079,106.1,105.92,1.75679739]
[1644541563235,38.6079,106.1,105.93,14.163]
[1644541563438,35.14970056,106.09,105.93,14.163]
[1644541563836,14.1644,106.06,105.91,0.25]
[1644541564037,42.75228088,106.05,105.9,10.716]
[1644541564538,44.5169846,106.02,105.9,10.716]
[1644541564737,44.5169846,106.02,105.9,10.966]
[1644541565145,44.5169846,106.02,105.9,27.02827036]
[1644541565445,44.5169846,106.02,105.9,24.8828]
[1644541565845,44.5169846,106.02,105.9,18.8828]
[1644541566249,44.5169846,106.02,105.9,20.4168]
[1644541566443,47.2175,106.08,105.9,22.17359739]
[1644541566648,24.4484,106.1,105.91,15.846]
[1644541566844,24.4484,106.1,105.96,14.1592]
[1644541567245,14.157,106.11,105.96,22.16599739]
[1644541567446,47.1899,106.14,105.96,22.16599739]
[1644541567647,35.61902571,106.13,105.97,4.714]
[1644541567845,35.61902571,106.13,105.97,10.964]
[1644541568045,35.61902571,106.13,105.98,14.1567]
[1644541569248,0.3109252,106.11,105.95,4.714]
[1644541569449,1.61543773,106.11,105.89,99.91345725]
[1644541569647,125.46857239,106.1,105.91,7.28655725]
[1644541569850,36.44402083,106.09,105.91,7.28655725]
[1644541570047,1.30451253,106.08,105.91,6.0]
[1644541570246,45.61612482,106.07,105.91,6.0]
[1644541570548,45.61612482,106.07,105.9,7.28655725]
[1644541570746,70.72612482,106.07,105.9,21.45395725]
[1644541570946,59.77912482,106.07,105.9,23.21075464]
[1644541571146,59.77912482,106.07,105.91,26.52287994]
[1644541571349,59.77912482,106.07,105.92,1.28655725]
[1644541571547,59.77912482,106.07,105.92,14.17335464]
[1644541571745,59.77912482,106.07,105.92,20.42335464]
[1644541571945,59.77912482,106.07,105.93,1.28655725]
[1644541572146,59.77912482,106.07,105.93,12.41655725]
[1644541572347,59.77912482,106.07,105.93,18.66655725]
[1644541572746,59.77912482,106.07,105.95,14.1599]
[1644541573248,59.77912482,106.07,105.93,54.73615725]
[1644541573249,59.77912482,106.07,105.93,7.53655725]
[1644541573649,59.77912482,106.07,105.93,1.28655725]
[1644541574048,0.32087253,106.09,105.91,1.28655725]
[1644541574049,14.1695,106.02,105.91,1.28655725]
[1644541574251,46.22598146,106.01,105.91,1.28655725]
[1644541574451,46.22598146,106.01,105.9,4.716]
[1644541574452,46.22598146,106.01,105.9,6.00255725]
[1644541575053,46.22598146,106.01,105.9,4.716]
[1644541575857,14.1706,105.99,105.9,1.28655725]
[1644541576056,42.33010226,105.98,105.9,1.28655725]
[1644541576657,42.33010226,105.98,105.91,1.28655725]
[1644541576858,42.33010226,105.98,105.9,1.28655725]
[1644541577062,56.50190226,105.98,105.9,1.28655725]
[1644541577260,56.50190226,105.98,105.89,35.88855725]
[1644541577759,56.50190226,105.98,105.89,35.102]
[1644541581167,2.64618556,106.07,105.89,35.102]
[1644541581368,6.61666701,106.09,105.9,251.78354024]
[1644541581668,2.64618556,106.1,105.91,39.04309983]
[1644541581866,2.64618556,106.11,105.92,2.67215674]
[1644541582067,6.64340899,106.13,105.92,2.67215674]
[1644541582068,44.83800948,106.1,105.93,11.13]
[1644541582267,14.1596,106.08,105.95,14.1601]
[1644541582469,14.1596,106.08,105.96,11.13]
[1644541582670,37.55401608,106.07,105.96,11.13]
[1644541582873,37.55401608,106.07,105.96,19.1325772]
[1644541583069,37.55401608,106.07,105.97,1.7525772]
[1644541583298,37.55401608,106.07,106.0,14.1548]
[1644541583497,2.64618556,106.13,106.0,25.2848]
[1644541583694,11.13,106.15,106.0,31.5348]
[1644541583695,2.64618556,106.15,106.0,31.5348]
[1644541583895,2.64618556,106.16,106.01,6.4655772]
[1644541584095,2.64618556,106.16,106.02,11.13]
[1644541584299,16.79548556,106.16,106.04,14.1496]
[1644541584595,35.74588981,106.15,106.05,11.13]
[1644541584795,35.74588981,106.15,106.06,11.13]
[1644541585196,35.74588981,106.15,106.06,11.38]
[1644541585396,35.74588981,106.15,106.06,25.2777]
[1644541585795,35.74588981,106.15,106.06,11.13]
[1644541586697,49.89548981,106.15,106.06,11.13]
[1644541587098,49.89548981,106.15,106.03,11.13]
[1644541587298,49.89548981,106.15,106.01,6.0]
[1644541587595,49.89548981,106.15,106.0,11.13]
[1644541587795,49.89548981,106.15,106.0,17.38]
[1644541588495,49.89548981,106.15,106.0,17.13]
[1644541588695,49.89548981,106.15,106.0,31.2856]
[1644541589097,63.67167537,106.15,106.0,31.2856]
[1644541589296,63.67167537,106.15,106.0,17.13]
[1644541589796,94.25,106.14,105.97,34.3297]
[1644541589998,14.1582,106.09,105.98,14.1576]
[1644541590198,40.6349579,106.08,105.98,14.1576]
[1644541590998,40.6349579,106.08,105.97,17.13]
[1644541590999,54.7930579,106.08,105.97,17.13]
[1644541591696,40.6349579,106.08,105.97,17.13]
[1644541591898,40.6349579,106.08,105.98,1.7525772]
[1644541592100,40.6349579,106.08,105.99,25.286]
[1644541592296,40.6349579,106.08,105.99,11.13]
[1644541593397,40.6349579,106.08,105.97,6.024]
[1644541593600,40.6349579,106.08,105.97,0.024]
[1644541593798,54.7938579,106.08,105.96,31.5402]
[1644541594905,40.6349579,106.08,105.96,61.83502336]
[1644541595105,40.6349579,106.08,105.96,46.12363986]
[1644541595304,40.6349579,106.08,105.96,31.2902]
[1644541595708,40.6349579,106.08,105.96,25.2902]
[1644541595905,40.6349579,106.08,105.96,11.13]
[1644541595906,54.7941579,106.08,105.96,11.13]
[1644541596105,54.7941579,106.08,105.95,0.024]
[1644541596805,54.7941579,106.08,105.94,25.2181]
[1644541597006,54.7941579,106.08,105.96,1.7525772]
[1644541597208,40.6349579,106.08,105.96,12.8825772]
[1644541597407,40.6349579,106.08,105.96,13.1325772]
[1644541597611,40.6349579,106.08,105.96,17.8485772]
[1644541597806,40.6349579,106.08,105.96,63.0352]
[1644541598007,40.6349579,106.08,105.97,14.1588]
[1644541598806,40.6349579,106.08,105.97,14.4088]
[1644541598807,54.7937579,106.08,105.97,14.4088]
[1644541600810,54.7937579,106.08,105.97,14.1588]
[1644541602313,54.7937579,106.08,105.96,11.154]
[1644541603112,65.9237579,106.08,105.96,0.024]
[1644541603320,65.9237579,106.08,105.95,0.024]
[1644541603711,54.7937579,106.08,105.95,11.13]
[1644541603911,54.7937579,106.08,105.96,26.89350807]
[1644541604115,54.7937579,106.08,105.97,11.13]
[1644541604717,54.7937579,106.08,105.97,25.2889]
[1644541607118,54.7937579,106.08,105.97,11.13]
[1644541607920,54.7937579,106.08,105.96,0.024]
[1644541607921,149.0437579,106.08,105.96,0.024]
[1644541608119,149.0437579,106.08,105.94,36.0981]
[1644541608723,149.0437579,106.08,105.95,26.89759097]
[1644541608924,54.7937579,106.08,105.95,26.92159097]
[1644541609124,54.7937579,106.08,105.95,38.05159097]
[1644541609324,54.7937579,106.08,105.95,38.30159097]
[1644541609540,54.7937579,106.08,105.96,28.65016817]
[1644541609739,54.7937579,106.08,105.96,52.43799097]
[1644541609946,54.7937579,106.08,105.97,26.89759097]
[1644541611240,54.7937579,106.08,105.96,0.024]
[1644541611241,149.0437579,106.08,105.96,0.024]
[1644541611441,160.49468222,106.08,105.94,24.9681]
[1644541612042,160.1737579,106.08,105.94,24.9681]
[1644541612443,160.1737579,106.08,105.95,26.89698405]
[1644541612645,162.40497944,106.08,105.95,26.92098405]
[1644541612843,5.32503562,106.07,105.89,11.13]
[1644541613044,14.172,106.03,105.93,0.024]
[1644541613243,34.9495959,106.02,105.9,0.024]
[1644541613442,34.9495959,106.02,105.89,11.154]
[1644541614846,14.1722,105.99,105.89,11.154]
[1644541615044,34.51495919,105.98,105.89,11.13]
[1644541615647,34.51495919,105.98,105.87,0.024]
[1644541615847,34.51495919,105.98,105.86,34.1657177]
[1644541616054,34.51495919,105.98,105.87,2.66797637]
[1644541616246,14.1745,105.96,105.87,2.66797637]
[1644541616447,48.2068942,105.95,105.87,2.66797637]
[1644541616649,48.2068942,105.95,105.86,31.5542]
[1644541616847,48.2068942,105.95,105.86,34.1657177]
[1644541617047,48.2068942,105.95,105.87,2.6695221]
[1644541617248,48.2068942,105.95,105.86,35.9182949]
[1644541617449,48.2068942,105.95,105.86,33.3067772]
[1644541617649,14.1763,105.94,105.86,6.0]
[1644541617852,44.29061869,105.93,105.85,6.0]
[1644541618449,44.29061869,105.93,105.83,21.5180949]
[1644541618649,44.29061869,105.93,105.83,18.8825772]
[1644541618848,14.1793,105.92,105.83,33.0618772]
[1644541619048,39.41093476,105.91,105.83,33.0618772]
[1644541619250,39.41093476,105.91,105.83,33.3118772]
[1644541619650,39.41093476,105.91,105.83,33.0618772]
[1644541620051,53.59063476,105.91,105.83,27.0618772]
[1644541620251,53.59063476,105.91,105.83,12.8825772]
[1644541620457,53.59063476,105.91,105.82,4.721]
[1644541621656,53.59063476,105.91,105.82,10.721]
[1644541621859,53.59063476,105.91,105.82,6.0]
[1644541622456,53.59063476,105.91,105.8,28.5623]
[1644541622656,14.1855,105.87,105.79,11.13]
[1644541622855,46.49179644,105.86,105.79,0.024]
[1644541623058,46.49179644,105.86,105.78,0.47249647]
[1644541623259,46.49179644,105.86,105.75,15.5180949]
[1644541623455,46.49179644,105.86,105.76,2.66446075]
[1644541623856,46.49179644,105.86,105.76,16.40597845]
[1644541624055,46.49179644,105.86,105.77,6.4775772]
[1644541624256,46.49179644,105.86,105.78,25.3141]
[1644541624657,46.49179644,105.86,105.78,31.3141]
[1644541625058,46.49179644,105.86,105.78,17.13]
[1644541625261,46.49179644,105.86,105.78,6.0]
[1644541625665,46.49179644,105.86,105.77,12.4775772]
[1644541626160,46.49179644,105.86,105.77,26.6629772]
[1644541627060,46.49179644,105.86,105.77,12.4775772]
[1644541627568,60.67919644,105.86,105.77,7.7525772]
[1644541628365,60.67919644,105.86,105.78,1.7525772]
[1644541628763,60.67919644,105.86,105.77,17.13]
[1644541628964,60.67919644,105.86,105.77,6.0]
[1644541629269,60.67919644,105.86,105.75,0.024]
[1644541629464,60.67919644,105.86,105.74,11.13]
[1644541629867,60.67919644,105.86,105.74,31.3202]
[1644541630065,60.67919644,105.86,105.74,33.3227772]
[1644541630564,60.67919644,105.86,105.74,27.3227772]
[1644541631770,60.67919644,105.86,105.74,27.0727772]
[1644541631983,60.67919644,105.86,105.74,31.3202]
[1644541632368,60.67919644,105.86,105.74,17.13]
[1644541632569,60.67919644,105.86,105.73,0.024]
[1644541632770,60.67919644,105.86,105.72,40.2300772]
[1644541633168,60.67919644,105.86,105.72,40.4800772]
[1644541633475,154.92919644,105.86,105.72,16.2185772]
[1644541633870,60.67919644,105.86,105.72,16.2185772]
[1644541634069,60.67919644,105.86,105.72,22.2185772]
[1644541634271,60.67919644,105.86,105.72,33.0985772]